{"text_format":"1","workbook":"xlsx","n_sheets":6,"sheets":["Önceliklendirme","Eğitim Öğretim","AR-GE","Uygulama ve Hizmet","İdari ve Destek","Yönetsel"],"not_rendered":{"charts":0,"images":3,"macros":1,"external_links":0,"defined_names":0,"comments":6,"pivot_tables":0},"unopened":[],"bounds":{"document_bytes":16777216,"sheet_cells":100000,"rows_first":2000,"rows_last":500,"rows_between":2000,"halvings":0,"cell_chars":16384,"cell_head_chars":4096},"cells_cut":0,"cells_raw":0,"read":"whole","date_system":"1900"}

{"sheet":"Önceliklendirme","index":0,"n_rows":10,"n_cols":22,"rows_kept":10,"cut":false,"hidden":false,"merged":[[0,0,1,1],[0,2,1,21],[2,0,3,0],[2,1,3,1],[2,3,2,10],[2,11,2,15],[2,16,2,21]]}
[null,null,"RİSK ANALİZİ ÖNCELİKLENDİRME"]
[]
["SIRA","İLGİLİ SAYFA","Doküman No: FRM-0348\nYayın Tarihi: 07.01.2025\nRevizyon Tarihi: 07.01.2025\nRevizyon No: 00","A (Mevcut Durum)",null,null,null,null,null,null,null,"B (Önlemlerin Alınmasından Sonra Yapılan Risk Değerlendirmesi)",null,null,null,null,"C (Sonuç)"]
[null,null,"Risk Tanımı","Risk Giderici Mevcut Faaliyet","İlgili Belge","Etki","Olasılık","Puan","Risk Derecesi","Karar","İyileştirme","Risk Giderme Yöntemi (Düzeltici ve Önleyici Kontrol Tedbirleri)","Sorumlu (Birim/Kişi)","Termin \n(Bitiş Tarihi)","Kaynak","Sonuçlar nasıl değerlendirilecek?","Etki","Olasılık","Puan","Risk Derecesi","Karar","İyileştirme"]
[1,"Eğitim Öğretim","Akredite program sayısının az olması","Bölümün MÜDEK, YÖKAK gibi akreditasyon kuruluşları tarafından akredite olması amaçlanmaktadır.","MÜDEK veya YÖKAK Akreditasyon Raporu",4,5,{"$f":"F5*G5","v":20},{"$f":"IF(H5<=4,\"Çok Düşük\",(IF(H5<=8,\"Düşük\",(IF(H5<=14,\"Orta\",(IF(H5<=19,\"Yüksek\",(IF(H5<=25,\"Çok Yüksek\",)))))))))","v":"Çok Yüksek"},"Kaçınmak",{"$f":"IF(F5=5,\"Gereklidir\",IF(H5<=12,\"Gerek Yoktur\",(IF(H5<=25,\"Gereklidir\",\"\"))))","v":"Gereklidir"},"Daha fazla program için akreditasyon başvuruları yapılacak ve eksiklikler tamamlanacak","Bölüm Başkanı","2025-12-31","Bölüm bütçesi, insan kaynağı","MÜDEK ve YÖKAK değerlendirme sonuçları ile akreditasyon başvuruları izlenecek",4,4,{"$f":"Q5*R5","v":16},{"$f":"IF(S5<=4,\"Çok Düşük\",(IF(S5<=8,\"Düşük\",(IF(S5<=14,\"Orta\",(IF(S5<=19,\"Yüksek\",(IF(S5<=25,\"Çok Yüksek\",)))))))))","v":"Yüksek"},"Kaçınmak",{"$f":"IF(Q5=5,\"Gereklidir\",IF(S5<=12,\"Gerek Yoktur\",(IF(S5<=25,\"Gereklidir\",\"\"))))","v":"Gereklidir"}]
[2,"Eğitim Öğretim","Başarılı öğrencilerin üniversiteye çekilememesi","Derslik, laboratuvar ve hastane alt yapısının iyileştirilmesi. Öğrenci barınma ve sosyal alanlarının arttırılması.","Yatırım Planı veya Altyapı Geliştirme Projeleri",4,4,{"$f":"F6*G6","v":16},{"$f":"IF(H6<=4,\"Çok Düşük\",(IF(H6<=8,\"Düşük\",(IF(H6<=14,\"Orta\",(IF(H6<=19,\"Yüksek\",(IF(H6<=25,\"Çok Yüksek\",)))))))))","v":"Yüksek"},"Kaçınmak",{"$f":"IF(F6=5,\"Gereklidir\",IF(H6<=12,\"Gerek Yoktur\",(IF(H6<=25,\"Gereklidir\",\"\"))))","v":"Gereklidir"},"Üniversite tanıtımları artırılacak, burs ve ödüller oluşturulacak","Tanıtım Ofisi","2025-09-01","Tanıtım bütçesi","Öğrenci başvuru ve yerleştirme sonuçları değerlendirilecek",3,4,{"$f":"Q6*R6","v":12},{"$f":"IF(S6<=4,\"Çok Düşük\",(IF(S6<=8,\"Düşük\",(IF(S6<=14,\"Orta\",(IF(S6<=19,\"Yüksek\",(IF(S6<=25,\"Çok Yüksek\",)))))))))","v":"Orta"},"Kaçınmak",{"$f":"IF(Q6=5,\"Gereklidir\",IF(S6<=12,\"Gerek Yoktur\",(IF(S6<=25,\"Gereklidir\",\"\"))))","v":"Gerek Yoktur"}]
[3,"Eğitim Öğretim","Laboratuvar olanaklarının yetersiz olması","Laboratuvarların modernizasyonu ve yeni cihaz alımı","Laboratuvar Yönergesi",5,3,{"$f":"F7*G7","v":15},"Yüksek","Kaçınmak","Gereklidir","Yeni cihazlar ve teknolojik altyapılar sağlanacak","Laboratuvar Sorumlusu","2025-12-31","Laboratuvar bütçesi","Laboratuvar verimliliği ve öğrenci projeleri ile izlenecek",4,4,{"$f":"Q7*R7","v":16},"Yüksek","Kaçınmak","Gereklidir"]
[4,"Eğitim Öğretim","Araştırma ve geliştirme faaliyetlerine yeterli kaynak sağlanamaması","TÜBİTAK ve diğer projelerden fon sağlanması","Proje Yönergesi",5,5,25,"Çok Yüksek","Kaçınmak","Gereklidir","Daha fazla TÜBİTAK, AB ve BAP projelerine başvuru yapılacak","AR-GE Birimi","2025-12-31","Proje fonları","Proje başvuruları ve alınan fon miktarları ile değerlendirilecek",3,3,9,"Orta","Kaçınmak","Gerek Yoktur"]
[5,"AR-GE","Üretilen sistemlerin ticarileştirilmesi, yaygınlaştırılması, kullanılması ve benimsenmesi aşamasında karşılaşılacak sorunlar","Sistemlerin ticarileştirilmesi ve yaygınlaştırılması için sanayi ortaklarıyla işbirliklerinin artırılması, TTO’ların ticarileştirme süreçlerini yönlendirmesi ve iş geliştirme desteği sağlaması","Ebys, Yönetim Kurul Kararları, talepler",4,4,{"$f":"F9*G9","v":16},"Yüksek","Kaçınmak","Gereklidir","Teknokent, kosgeb ve diğer kuruluşlarla ile iş birliği yapılması","Rektörlük","2025-12-31","Proje başvuruları, sanayi kuruluşlarından destekler","sağlanacak fonlarla gerekli destekler sağlanacaktır.",3,3,{"$f":"Q9*R9","v":9},"Orta","Kaçınmak","Gerek Yoktur"]
[6,"Yönetsel","Programların akredite edilememesi","Eğitim içeriklerinin, akreditasyon standartlarına uygun olarak düzenli gözden geçirilmesi ve güncellenmesi.","Ebys, Yönetim Kurul Kararları, Mail",4,4,{"$f":"F10*G10","v":16},"Yüksek","Devretmek","Gereklidir","Daha fazla program için akreditasyon başvuruları yapılacak ve eksiklikler tamamlanacak","Bölüm Başkanı","2025-12-31","Bölüm bütçesi, insan kaynağı","MÜDEK ve YÖKAK değerlendirme sonuçları ile akreditasyon başvuruları izlenecek",4,4,{"$f":"Q10*R10","v":16},"Yüksek","Devretmek","Gereklidir"]

{"sheet":"Eğitim Öğretim","index":1,"n_rows":12,"n_cols":22,"rows_kept":12,"cut":false,"hidden":false,"merged":[[0,0,1,1],[2,3,2,10],[2,16,2,21],[0,2,1,21],[2,0,3,0],[2,1,3,1],[2,11,2,15]]}
[null,null,"EĞİTİM VE ÖĞRETİM SÜREÇLERİ\nRİSK ANALİZİ"]
[]
["SIRA","İLGİLİ BİRİM","Doküman No: FRM-0348\nYayın Tarihi: 03.10.2024\nRevizyon Tarihi: 03.10.2024\nRevizyon No: 00","A (Mevcut Durum)",null,null,null,null,null,null,null,"B (Önlemlerin Alınmasından Sonra Yapılan Risk Değerlendirmesi)",null,null,null,null,"C (Sonuç)"]
[null,null,"Risk Tanımı","Risk Giderici Mevcut Faaliyet","İlgili Belge","Etki","Olasılık","Puan","Risk Derecesi","Karar","İyileştirme","Risk Giderme Yöntemi (Düzeltici ve Önleyici Kontrol Tedbirleri)","Sorumlu (Birim/Kişi)","Termin \n(Bitiş Tarihi)","Kaynak","Sonuçlar nasıl değerlendirilecek?","Etki","Olasılık","Puan","Risk Derecesi","Karar","İyileştirme"]
[1,"Mühendislik Fakültesi","Akredite program sayısının az olması","Bölümün MÜDEK, YÖKAK gibi akreditasyon kuruluşları tarafından akredite olması amaçlanmaktadır.","MÜDEK veya YÖKAK Akreditasyon Raporu",4,5,{"$f":"F5*G5","v":20},{"$f":"IF(H5<=4,\"Çok Düşük\",(IF(H5<=8,\"Düşük\",(IF(H5<=14,\"Orta\",(IF(H5<=19,\"Yüksek\",(IF(H5<=25,\"Çok Yüksek\",)))))))))","v":"Çok Yüksek"},"Kaçınmak",{"$f":"IF(F5=5,\"Gereklidir\",IF(H5<=12,\"Gerek Yoktur\",(IF(H5<=25,\"Gereklidir\",\"\"))))","v":"Gereklidir"},"Daha fazla program için akreditasyon başvuruları yapılacak ve eksiklikler tamamlanacak","Bölüm Başkanı","2025-12-31","Bölüm bütçesi, insan kaynağı","MÜDEK ve YÖKAK değerlendirme sonuçları ile akreditasyon başvuruları izlenecek",4,4,{"$f":"Q5*R5","v":16},{"$f":"IF(S5<=4,\"Çok Düşük\",(IF(S5<=8,\"Düşük\",(IF(S5<=14,\"Orta\",(IF(S5<=19,\"Yüksek\",(IF(S5<=25,\"Çok Yüksek\",)))))))))","v":"Yüksek"},"Kaçınmak",{"$f":"IF(Q5=5,\"Gereklidir\",IF(S5<=12,\"Gerek Yoktur\",(IF(S5<=25,\"Gereklidir\",\"\"))))","v":"Gereklidir"}]
[2,"Mühendislik Fakültesi","Başarılı öğrencilerin üniversiteye çekilememesi","Derslik, laboratuvar ve hastane alt yapısının iyileştirilmesi. Öğrenci barınma ve sosyal alanlarının arttırılması.","Yatırım Planı veya Altyapı Geliştirme Projeleri",4,4,{"$f":"F6*G6","v":16},{"$f":"IF(H6<=4,\"Çok Düşük\",(IF(H6<=8,\"Düşük\",(IF(H6<=14,\"Orta\",(IF(H6<=19,\"Yüksek\",(IF(H6<=25,\"Çok Yüksek\",)))))))))","v":"Yüksek"},"Kaçınmak",{"$f":"IF(F6=5,\"Gereklidir\",IF(H6<=12,\"Gerek Yoktur\",(IF(H6<=25,\"Gereklidir\",\"\"))))","v":"Gereklidir"},"Üniversite tanıtımları artırılacak, burs ve ödüller oluşturulacak","Tanıtım Ofisi","2025-09-01","Tanıtım bütçesi","Öğrenci başvuru ve yerleştirme sonuçları değerlendirilecek",3,4,{"$f":"Q6*R6","v":12},{"$f":"IF(S6<=4,\"Çok Düşük\",(IF(S6<=8,\"Düşük\",(IF(S6<=14,\"Orta\",(IF(S6<=19,\"Yüksek\",(IF(S6<=25,\"Çok Yüksek\",)))))))))","v":"Orta"},"Kaçınmak",{"$f":"IF(Q6=5,\"Gereklidir\",IF(S6<=12,\"Gerek Yoktur\",(IF(S6<=25,\"Gereklidir\",\"\"))))","v":"Gerek Yoktur"}]
[3,"Mühendislik Fakültesi","Gelen öğrenci sayılarının yetersizliği","Üniversite sınavı başarı sıralaması 300.000 ve üzeri olan öğrencilerin mühendislik fakültesini tercih edememesi ve 300.000 sıralamadan daha iyi öğrencilerin mühendislik fakültesini tercih etmek istememesi sonucu gelen öğrenci sayısı yetersizdir."," ÖSYM Yerleştirme Sonuçları veya Üniversite Tanıtım Stratejisi",2,2,{"$f":"F7*G7","v":4},"Çok Düşük","Kaçınmak","Gerek Yoktur","Mühendislik programlarının tanıtım çalışmaları yoğunlaştırılacak, başarı sıralamasını yükseltmeye yönelik hedef belirlenerek yeni stratejiler uygulanacak","Tanıtım Ofisi","2025-09-01","Tanıtım bütçesi","Öğrenci sayısında artış olup olmadığı değerlendirilecek",1,2,{"$f":"Q7*R7","v":2},"Çok Düşük","Kaçınmak","Gerek Yoktur"]
[4,"Mühendislik Fakültesi","Öğrenci uygulama laboratuvarlarının donanımının yetersiz olması","Bölüm laboratuvarlarındaki bilgisayar, ölçüm aleti vb. donanımlar ile lisanslı yazılımların eksik olması.","Laboratuvar Donanım Envanteri veya Laboratuvar Geliştirme Planı",3,3,{"$f":"F8*G8","v":9},"Orta","Kaçınmak","Gerek Yoktur","Laboratuvarların modernizasyonu için yeni cihaz alımı ve yazılım güncellemeleri yapılacak","Laboratuvar Sorumlusu","2025-12-31","Laboratuvar bütçesi","Öğrenci memnuniyet anketleri ve laboratuvar kullanım verileri ile izlenecek",3,2,{"$f":"Q8*R8","v":6},"Düşük","Kaçınmak","Gerek Yoktur"]
[5,"Mühendislik Fakültesi","Öğretim elemanı sayılarının yetersizliğinden dolayı ders yüklerinin yüksek olması","Öğretim elemanı başına düşen ders sayısının fazla olması, bu durumun da akademik çalışmaları etkilemesi","Ders Yükü Dağılım Tablosu",2,2,{"$f":"F9*G9","v":4},{"$f":"IF(H9<=4,\"Çok Düşük\",(IF(H9<=8,\"Düşük\",(IF(H9<=14,\"Orta\",(IF(H9<=19,\"Yüksek\",(IF(H9<=25,\"Çok Yüksek\",)))))))))","v":"Çok Düşük"},"Kaçınmak","Gerek Yoktur","Yeni öğretim elemanları alınacak ve ders yükleri yeniden düzenlenecek","Dekanlık","2025-09-01","Kadro planlama bütçesi","Öğretim elemanlarının memnuniyet anketleri ile değerlendirilecek",1,1,{"$f":"Q9*R9","v":1},{"$f":"IF(S9<=4,\"Çok Düşük\",(IF(S9<=8,\"Düşük\",(IF(S9<=14,\"Orta\",(IF(S9<=19,\"Yüksek\",(IF(S9<=25,\"Çok Yüksek\",)))))))))","v":"Çok Düşük"},"Kaçınmak","Gerek Yoktur"]
[6,"Mühendislik Fakültesi","Laboratuvar olanaklarının yetersiz olması","Laboratuvarların modernizasyonu ve yeni cihaz alımı","Laboratuvar Yönergesi",5,3,{"$f":"F10*G10","v":15},"Yüksek","Kaçınmak","Gereklidir","Yeni cihazlar ve teknolojik altyapılar sağlanacak","Laboratuvar Sorumlusu","2025-12-31","Laboratuvar bütçesi","Laboratuvar verimliliği ve öğrenci projeleri ile izlenecek",4,4,{"$f":"Q10*R10","v":16},"Yüksek","Kaçınmak","Gereklidir"]
[7,"Mühendislik Fakültesi","Araştırma ve geliştirme faaliyetlerine yeterli kaynak sağlanamaması","TÜBİTAK ve diğer projelerden fon sağlanması","Proje Yönergesi",5,5,25,"Çok Yüksek","Kaçınmak","Gereklidir","Daha fazla TÜBİTAK, AB ve BAP projelerine başvuru yapılacak","AR-GE Birimi","2025-12-31","Proje fonları","Proje başvuruları ve alınan fon miktarları ile değerlendirilecek",3,3,9,"Orta","Kaçınmak","Gerek Yoktur"]
[8,"Mühendislik Fakültesi","Akademik personel sayısının yetersizliği","Yeni akademik kadro alımı için ilanlar açılması","Personel Yönergesi",3,3,9,"Orta","Kaçınmak","Gerek Yoktur","Yeni kadro ilanları açılacak ve uygun adaylar alınacak","Dekanlık","2025-12-31","Personel bütçesi","Personel sayısında artış ve iş yükü dağılımıyla izlenecek",1,2,2,"Çok Düşük","Kaçınmak","Gerek Yoktur"]

{"sheet":"AR-GE","index":2,"n_rows":7,"n_cols":22,"rows_kept":7,"cut":false,"hidden":false,"merged":[[2,16,2,21],[0,2,1,21],[0,0,1,1],[2,0,3,0],[2,1,3,1],[2,3,2,10],[2,11,2,15]]}
[null,null,"ARAŞTIRMA VE GELİŞTİRME SÜRECİ\nRİSK ANALİZİ"]
[]
["SIRA","İLGİLİ BİRİM","Doküman No: FRM-0348\nYayın Tarihi: 03.10.2024\nRevizyon Tarihi: 03.10.2024\nRevizyon No: 00","A (Mevcut Durum)",null,null,null,null,null,null,null,"B (Önlemlerin Alınmasından Sonra Yapılan Risk Değerlendirmesi)",null,null,null,null,"C (Sonuç)"]
[null,null,"Risk Tanımı","Risk Giderici Mevcut Faaliyet","İlgili Belge","Etki","Olasılık","Puan","Risk Derecesi","Karar","İyileştirme","Risk Giderme Yöntemi (Düzeltici ve Önleyici Kontrol Tedbirleri)","Sorumlu (Birim/Kişi)","Termin \n(Bitiş Tarihi)","Kaynak","Sonuçlar nasıl değerlendirilecek?","Etki","Olasılık","Puan","Risk Derecesi","Karar","İyileştirme"]
[1,"Mühendislik Fakültesi","Mevcut alet-ekipman ve fiziki altyapı yetersizliği.","Bölüm laboratuvarlarındaki bilgisayar, ölçüm aleti vb. donanımlar ile lisanslı yazılımların eksik olması.","Laboratuvar Donanım Envanteri",2,2,{"$f":"F5*G5","v":4},{"$f":"IF(H5<=4,\"Çok Düşük\",(IF(H5<=8,\"Düşük\",(IF(H5<=14,\"Orta\",(IF(H5<=19,\"Yüksek\",(IF(H5<=25,\"Çok Yüksek\",)))))))))","v":"Çok Düşük"},"Kaçınmak",{"$f":"IF(F5=5,\"Gereklidir\",IF(H5<=12,\"Gerek Yoktur\",(IF(H5<=25,\"Gereklidir\",\"\"))))","v":"Gerek Yoktur"},"Laboratuvar donanım envanterinin güncellenmesi ve eksik ekipman ihtiyaçlarının belirlenmesi.","Laboratuvar Sorumlusu","2025-12-31","Mevcut bütçe ve destek kaynakları","Güncellenmiş envanter raporu ve eksikliklerin giderilmesine yönelik öneriler.",1,1,{"$f":"Q5*R5","v":1},{"$f":"IF(S5<=4,\"Çok Düşük\",(IF(S5<=8,\"Düşük\",(IF(S5<=14,\"Orta\",(IF(S5<=19,\"Yüksek\",(IF(S5<=25,\"Çok Yüksek\",)))))))))","v":"Çok Düşük"},"Kaçınmak",{"$f":"IF(Q5=5,\"Gereklidir\",IF(S5<=12,\"Gerek Yoktur\",(IF(S5<=25,\"Gereklidir\",\"\"))))","v":"Gerek Yoktur"}]
[2,"Mühendislik Fakültesi"," Proje bütçelerinin yapılacak akademik çalışmalarda yetersiz kalması","Proje başvuruları için dış fon kaynakları araştırılması, mevcut bütçelerin verimli kullanılması","Proje Bütçe Planları, Mali Kaynaklar Listesi",2,2,{"$f":"F6*G6","v":4},{"$f":"IF(H6<=4,\"Çok Düşük\",(IF(H6<=8,\"Düşük\",(IF(H6<=14,\"Orta\",(IF(H6<=19,\"Yüksek\",(IF(H6<=25,\"Çok Yüksek\",)))))))))","v":"Çok Düşük"},"Kaçınmak",{"$f":"IF(F6=5,\"Gereklidir\",IF(H6<=12,\"Gerek Yoktur\",(IF(H6<=25,\"Gereklidir\",\"\"))))","v":"Gerek Yoktur"},"Ek fon sağlayıcı kuruluşlar ile işbirliği yapılması, bütçe planlamalarının iyileştirilmesi","Proje Yürütücüsü, AR-GE Birimi","2025-12-31","Proje başvuruları, dış fon kaynakları ile yapılan görüşmeler","Ek fonların temini ile projelerin sürdürülebilirliği sağlanacaktır.",1,1,{"$f":"Q6*R6","v":1},{"$f":"IF(S6<=4,\"Çok Düşük\",(IF(S6<=8,\"Düşük\",(IF(S6<=14,\"Orta\",(IF(S6<=19,\"Yüksek\",(IF(S6<=25,\"Çok Yüksek\",)))))))))","v":"Çok Düşük"},"Kaçınmak",{"$f":"IF(Q6=5,\"Gereklidir\",IF(S6<=12,\"Gerek Yoktur\",(IF(S6<=25,\"Gereklidir\",\"\"))))","v":"Gerek Yoktur"}]
[3,"Mühendislik Fakültesi","Üretilen sistemlerin ticarileştirilmesi, yaygınlaştırılması, kullanılması ve benimsenmesi aşamasında karşılaşılacak sorunlar","Sistemlerin ticarileştirilmesi ve yaygınlaştırılması için sanayi ortaklarıyla işbirliklerinin artırılması, TTO’ların ticarileştirme süreçlerini yönlendirmesi ve iş geliştirme desteği sağlaması","Ebys, Yönetim Kurul Kararları, talepler",4,4,{"$f":"F7*G7","v":16},"Yüksek","Kaçınmak","Gereklidir","Teknokent, kosgeb ve diğer kuruluşlarla ile iş birliği yapılması","Rektörlük","2025-12-31","Proje başvuruları, sanayi kuruluşlarından destekler","sağlanacak fonlarla gerekli destekler sağlanacaktır.",3,3,{"$f":"Q7*R7","v":9},"Orta","Kaçınmak","Gerek Yoktur"]

{"sheet":"Uygulama ve Hizmet","index":3,"n_rows":5,"n_cols":22,"rows_kept":5,"cut":false,"hidden":false,"merged":[[2,16,2,21],[0,2,1,21],[0,0,1,1],[2,0,3,0],[2,1,3,1],[2,3,2,10],[2,11,2,15]]}
[null,null,"UYGULAMA, HİZMET VE TOPLUMSAL KATKI SÜRECİ\nRİSK ANALİZİ"]
[]
["SIRA","İLGİLİ BİRİM","Doküman No: FRM-0348\nYayın Tarihi: 03.10.2024\nRevizyon Tarihi: 03.10.2024\nRevizyon No: 00","A (Mevcut Durum)",null,null,null,null,null,null,null,"B (Önlemlerin Alınmasından Sonra Yapılan Risk Değerlendirmesi)",null,null,null,null,"C (Sonuç)"]
[null,null,"Risk Tanımı","Risk Giderici Mevcut Faaliyet","İlgili Belge","Etki","Olasılık","Puan","Risk Derecesi","Karar","İyileştirme","Risk Giderme Yöntemi (Düzeltici ve Önleyici Kontrol Tedbirleri)","Sorumlu (Birim/Kişi)","Termin \n(Bitiş Tarihi)","Kaynak","Sonuçlar nasıl değerlendirilecek?","Etki","Olasılık","Puan","Risk Derecesi","Karar","İyileştirme"]
[1,"Mühendislik Fakültesi","Girişlerde turnike sisteminin olmaması","Kampüse erişimin belirli noktalardan sağlanarak girişlerin daha kolay izlenmesi","Personel ve öğrenci talepleri",1,1,{"$f":"F5*G5","v":1},{"$f":"IF(H5<=4,\"Çok Düşük\",(IF(H5<=8,\"Düşük\",(IF(H5<=14,\"Orta\",(IF(H5<=19,\"Yüksek\",(IF(H5<=25,\"Çok Yüksek\",)))))))))","v":"Çok Düşük"},"Devretmek",{"$f":"IF(F5=5,\"Gereklidir\",IF(H5<=12,\"Gerek Yoktur\",(IF(H5<=25,\"Gereklidir\",\"\"))))","v":"Gerek Yoktur"},"Yapı işleri","Rektörlük ve ilgili birimler","2026-12-31","Mevcut bütçe ve destek kaynakları","öğrenci ve personel memnuniyeti",1,1,{"$f":"Q5*R5","v":1},{"$f":"IF(S5<=4,\"Çok Düşük\",(IF(S5<=8,\"Düşük\",(IF(S5<=14,\"Orta\",(IF(S5<=19,\"Yüksek\",(IF(S5<=25,\"Çok Yüksek\",)))))))))","v":"Çok Düşük"},"Devretmek",{"$f":"IF(Q5=5,\"Gereklidir\",IF(S5<=12,\"Gerek Yoktur\",(IF(S5<=25,\"Gereklidir\",\"\"))))","v":"Gerek Yoktur"}]

{"sheet":"İdari ve Destek","index":4,"n_rows":7,"n_cols":22,"rows_kept":7,"cut":false,"hidden":false,"merged":[[0,0,1,1],[0,2,1,21],[2,0,3,0],[2,1,3,1],[2,3,2,10],[2,11,2,15],[2,16,2,21]]}
[null,null,"İDARİ VE DESTEK\nRİSK ANALİZİ"]
[]
["SIRA","İLGİLİ BİRİM","Doküman No: FRM-0348\nYayın Tarihi: 03.10.2024\nRevizyon Tarihi: 03.10.2024\nRevizyon No: 00","A (Mevcut Durum)",null,null,null,null,null,null,null,"B (Önlemlerin Alınmasından Sonra Yapılan Risk Değerlendirmesi)",null,null,null,null,"C (Sonuç)"]
[null,null,"Risk Tanımı","Risk Giderici Mevcut Faaliyet","İlgili Belge","Etki","Olasılık","Puan","Risk Derecesi","Karar","İyileştirme","Risk Giderme Yöntemi (Düzeltici ve Önleyici Kontrol Tedbirleri)","Sorumlu (Birim/Kişi)","Termin \n(Bitiş Tarihi)","Kaynak","Sonuçlar nasıl değerlendirilecek?","Etki","Olasılık","Puan","Risk Derecesi","Karar","İyileştirme"]
[1,"Mühendislik Fakültesi","Alanında Uzman Teknik Personel ve Usta Yetersizliği"," Laboratuvar teknisyen personel istihdamı","Ebys, Talepler",3,2,{"$f":"F5*G5","v":6},{"$f":"IF(H5<=4,\"Çok Düşük\",(IF(H5<=8,\"Düşük\",(IF(H5<=14,\"Orta\",(IF(H5<=19,\"Yüksek\",(IF(H5<=25,\"Çok Yüksek\",)))))))))","v":"Düşük"},"Devretmek",{"$f":"IF(F5=5,\"Gereklidir\",IF(H5<=12,\"Gerek Yoktur\",(IF(H5<=25,\"Gereklidir\",\"\"))))","v":"Gerek Yoktur"},null,null,null,null,null,1,1,{"$f":"Q5*R5","v":1},{"$f":"IF(S5<=4,\"Çok Düşük\",(IF(S5<=8,\"Düşük\",(IF(S5<=14,\"Orta\",(IF(S5<=19,\"Yüksek\",(IF(S5<=25,\"Çok Yüksek\",)))))))))","v":"Çok Düşük"},"Devretmek",{"$f":"IF(Q5=5,\"Gereklidir\",IF(S5<=12,\"Gerek Yoktur\",(IF(S5<=25,\"Gereklidir\",\"\"))))","v":"Gerek Yoktur"}]
[2,"Mühendislik Fakültesi","Laboratuvar içinde bulunan kimyasal malzeme ,cihaz ve gazların depreme bağlı olarak oluşabilecek zararlar","Deprem acil durum planı, eğitim ve tatbikatların planlanmalarının yapılması","Ebys, Yönetim Kurul Kararları, talepler",4,3,{"$f":"F6*G6","v":12},{"$f":"IF(H6<=4,\"Çok Düşük\",(IF(H6<=8,\"Düşük\",(IF(H6<=14,\"Orta\",(IF(H6<=19,\"Yüksek\",(IF(H6<=25,\"Çok Yüksek\",)))))))))","v":"Orta"},"Devretmek",{"$f":"IF(F6=5,\"Gereklidir\",IF(H6<=12,\"Gerek Yoktur\",(IF(H6<=25,\"Gereklidir\",\"\"))))","v":"Gerek Yoktur"},null,null,null,null,null,1,1,{"$f":"Q6*R6","v":1},{"$f":"IF(S6<=4,\"Çok Düşük\",(IF(S6<=8,\"Düşük\",(IF(S6<=14,\"Orta\",(IF(S6<=19,\"Yüksek\",(IF(S6<=25,\"Çok Yüksek\",)))))))))","v":"Çok Düşük"},"Devretmek",{"$f":"IF(Q6=5,\"Gereklidir\",IF(S6<=12,\"Gerek Yoktur\",(IF(S6<=25,\"Gereklidir\",\"\"))))","v":"Gerek Yoktur"}]
[3,"Mühendislik Fakültesi","Üniversitenin yetkinliklerinin sanayiye yeterince tanıtılmamış olması","Üniversite-sanayi buluşmaları, çalıştaylar ve açık günlerin düzenlenmesi. Üniversitenin yetkinliklerini gösteren broşür, katalog, video ve dijital içeriklerin hazırlanması ve sanayi temsilcilerine sunulması.","Ebys, Yönetim Kurul Kararları, talepler",3,2,{"$f":"F7*G7","v":6},"Düşük","Devretmek","Gerek Yoktur",null,null,null,null,null,1,1,{"$f":"Q7*R7","v":1},"Çok Düşük","Devretmek","Gerek Yoktur"]

{"sheet":"Yönetsel","index":5,"n_rows":6,"n_cols":22,"rows_kept":6,"cut":false,"hidden":false,"merged":[[2,16,2,21],[0,2,1,21],[0,0,1,1],[2,0,3,0],[2,1,3,1],[2,3,2,10],[2,11,2,15]]}
[null,null,"YÖNETSEL SÜREÇLER\nRİSK ANALİZİ"]
[]
["SIRA","İLGİLİ BİRİM","Doküman No: FRM-0348\nYayın Tarihi: 03.10.2024\nRevizyon Tarihi: 03.10.2024\nRevizyon No: 00","A (Mevcut Durum)",null,null,null,null,null,null,null,"B (Önlemlerin Alınmasından Sonra Yapılan Risk Değerlendirmesi)",null,null,null,null,"C (Sonuç)"]
[null,null,"Risk Tanımı","Risk Giderici Mevcut Faaliyet","İlgili Belge","Etki","Olasılık","Puan","Risk Derecesi","Karar","İyileştirme","Risk Giderme Yöntemi (Düzeltici ve Önleyici Kontrol Tedbirleri)","Sorumlu (Birim/Kişi)","Termin \n(Bitiş Tarihi)","Kaynak","Sonuçlar nasıl değerlendirilecek?","Etki","Olasılık","Puan","Risk Derecesi","Karar","İyileştirme"]
[1,"Mühendislik Fakültesi","Yönetim süreçlerinde stratejik plan eksikliği","Stratejik planların oluşturulması ve düzenli olarak güncellenmesi","Stratejik Plan Dokümanları",3,3,{"$f":"F5*G5","v":9},{"$f":"IF(H5<=4,\"Çok Düşük\",(IF(H5<=8,\"Düşük\",(IF(H5<=14,\"Orta\",(IF(H5<=19,\"Yüksek\",(IF(H5<=25,\"Çok Yüksek\",)))))))))","v":"Orta"},"Kabullenmek",{"$f":"IF(F5=5,\"Gereklidir\",IF(H5<=12,\"Gerek Yoktur\",(IF(H5<=25,\"Gereklidir\",\"\"))))","v":"Gerek Yoktur"},"Verilen KYBS sistemine düzenli giirilip güncellenmesi","Rektörlük, İlgili idari birim","2025-12-31",null,"YYG toplantılarında değerlendirilmesi",1,1,{"$f":"Q5*R5","v":1},{"$f":"IF(S5<=4,\"Çok Düşük\",(IF(S5<=8,\"Düşük\",(IF(S5<=14,\"Orta\",(IF(S5<=19,\"Yüksek\",(IF(S5<=25,\"Çok Yüksek\",)))))))))","v":"Çok Düşük"},"Kabullenmek",{"$f":"IF(Q5=5,\"Gereklidir\",IF(S5<=12,\"Gerek Yoktur\",(IF(S5<=25,\"Gereklidir\",\"\"))))","v":"Gerek Yoktur"}]
[2,"Mühendislik Fakültesi","Programların akredite edilememesi","Eğitim içeriklerinin, akreditasyon standartlarına uygun olarak düzenli gözden geçirilmesi ve güncellenmesi.","Ebys, Yönetim Kurul Kararları, Mail",4,4,{"$f":"F6*G6","v":16},{"$f":"IF(H6<=4,\"Çok Düşük\",(IF(H6<=8,\"Düşük\",(IF(H6<=14,\"Orta\",(IF(H6<=19,\"Yüksek\",(IF(H6<=25,\"Çok Yüksek\",)))))))))","v":"Yüksek"},"Devretmek",{"$f":"IF(F6=5,\"Gereklidir\",IF(H6<=12,\"Gerek Yoktur\",(IF(H6<=25,\"Gereklidir\",\"\"))))","v":"Gereklidir"},"Daha fazla program için akreditasyon başvuruları yapılacak ve eksiklikler tamamlanacak","Bölüm Başkanı","2025-12-31","Bölüm bütçesi, insan kaynağı","MÜDEK ve YÖKAK değerlendirme sonuçları ile akreditasyon başvuruları izlenecek",4,4,{"$f":"Q6*R6","v":16},{"$f":"IF(S6<=4,\"Çok Düşük\",(IF(S6<=8,\"Düşük\",(IF(S6<=14,\"Orta\",(IF(S6<=19,\"Yüksek\",(IF(S6<=25,\"Çok Yüksek\",)))))))))","v":"Yüksek"},"Devretmek",{"$f":"IF(Q6=5,\"Gereklidir\",IF(S6<=12,\"Gerek Yoktur\",(IF(S6<=25,\"Gereklidir\",\"\"))))","v":"Gereklidir"}]